Cogmind - Beta 11.1 @@@ ROGUE MODE // 2022.08.06 @ 21:46:43 Player: John_Oxford Result: Destroyed by G-34 Mercenary with Small Laser Performance ------------- Evolutions (0) 0 Regions Visited (2) 400 Robots Destroyed (15) 75 Value Destroyed (536) 536 Prototype IDs (0) 0 Alien Tech Used (0) 0 Bonus (0) 0 TOTAL SCORE: 1011 Bonus ------- None Cogmind --------- Core Integrity 0/250 Matter 280/300 Energy 82/160 System Corruption 2% Temperature Cool (4) Movement Walking (190) Ox1 Location -10/Mines Parts ------- > --- POWER (1) -------- Light Nuclear Core > --- PROPULSION (2) --- Aluminum Leg > --- UTILITY (2) ------ Medium Storage Unit Shield Generator > --- WEAPON (2) ------- Medium Laser Small Laser > --- INVENTORY (10) --- Light Treads Improved Heat Sink Disposable Heat Sink High-capacity Battery (250) High-capacity Matter Pod (195) Visual Processing Unit ECM Suite Grenade Launcher Peak State ------------ > --- POWER ------------ Ion Engine > --- PROPULSION ------- Aluminum Leg Aluminum Leg > --- UTILITY ---------- Improved Heat Sink Small Storage Unit > --- WEAPON ----------- Small Laser Small Laser > --- INVENTORY -------- Light Nuclear Core Light Treads Light Treads Aluminum Leg High-capacity Matter Pod Visual Processing Unit Grenade Launcher [Rating: 10] Favorites ----------- Power Ion Engine Engine Ion Engine Power Core Light Nuclear Core Propulsion Aluminum Leg Treads Light Treads Leg Aluminum Leg Utility Improved Heat Sink Device Improved Heat Sink Storage Medium Storage Unit Weapon Small Laser Energy Gun Small Laser Ballistic Gun Assault Rifle Build | -11 -10 -10 ------- Run | Scr Mat Min Slots Evolved . | . . . Power . | . . . Propulsion . | . . . Utility . | . . . Weapon . | . . . Parts Attached 23 | 6 14 3 Power 4 | 1 2 1 Engine 3 | 1 2 . Core 1 | . . 1 Reactor . | . . . Propulsion 6 | 2 4 . Treads 2 | 2 . . Leg 4 | . 4 . Wheel . | . . . Hover . | . . . Flight . | . . . Utility 5 | 1 3 1 Device 3 | . 2 1 Storage 2 | 1 1 . Processor . | . . . Hackware . | . . . Protection . | . . . Artifact . | . . . Weapon 8 | 2 5 1 Energy Gun 7 | 1 5 1 Energy Cannon . | . . . Ballistic Gun 1 | 1 . . Ballistic Cannon . | . . . Launcher . | . . . Special Weapon . | . . . Impact Weapon . | . . . Slashing Weapon . | . . . Piercing Weapon . | . . . Special Melee Weapon . | . . . Unidentified Prototypes . | . . . Parts Lost 4 | . 1 3 Power 2 | . 1 1 Propulsion 1 | . . 1 Utility . | . . . Weapon 1 | . . 1 Highest Loss Streak 2 | . 1 2 To Critical Strikes . | . . . Average Slot Usage (%) 94 | . 94 90 Engine 13 | . 14 12 Treads 7 | . 8 . Leg 19 | . 19 24 Device 9 | . 9 14 Storage 14 | . 14 14 Energy Gun 23 | . 23 23 Ballistic Gun 3 | . 4 . Naked Turns . | . . . Heaviest Build 20 | 11 19 20 Greatest Support 40 | 40 40 20 Greatest Overweight (x) 1 | 1 . 1 Average Overweight (x) . | . . . Largest Inventory Capacity 10 | 8 10 10 Average Capacity 9 | 6 9 10 Most Carried 10 | 5 10 10 Average Carried 7 | 3 7 9 Final Capacity 10 | 8 10 10 Final Carried 10 | 4 10 8 Class Distribution -------------------- 100% | Mutant Dominant Class ---------------- Mutant | -10/Materials Mutant | -10/Mines Resources | -11 -10 -10 ----------- Run | Scr Mat Min Matter Collected 670 | 202 375 93 Remotely . | . . . Salvage Created 620 | . 527 93 Parts 36 | . 32 4 Haulers Intercepted . | . . . Recyclers Shooed 4 | . 4 . Parts Field Recycled . | . . . Retrieved Matter . | . . . Parts Self-Destructed . | . . . Prevented . | . . . Kills | -11 -10 -10 ------- Run | Scr Mat Min Combat Hostiles Destroyed 14 | . 11 3 Guns 12 | . 10 2 Classes Destroyed 3 | . 2 1 Watcher 2 | . 2 . Grunt 13 | . 11 2 Assembled 1 | . . 1 Best Kill Streak 2 | . 2 2 Combat Bots Only 2 | . 2 2 Max Kills in Single Turn 1 | . 1 1 Gunslinging . | . . . Exploded . | . . . Melee . | . . . Uniques/NPCs Destroyed . | . . . Combat | -11 -10 -10 -------- Run | Scr Mat Min Damage Taken 1075 | . 718 357 Core 252 | . 133 119 Absorbed by Shields 45 | . . 45 Regen/Repaired (Parts) 45 | . 45 . Core Remaining (%) 100 | 100 . . Volleys Fired 73 | . 55 18 Largest 2 | . 2 2 Hottest 90 | . 90 90 Shots Fired 128 | . 108 20 Gun 128 | . 108 20 Cannon . | . . . Launcher . | . . . Special . | . . . Kinetic 29 | . 29 . Thermal 91 | . 71 20 Explosive . | . . . Electromagnetic 8 | . 8 . Robot Hit Streak 10 | . 10 8 Robot Miss Streak 3 | . 3 2 Penetration Max . | . . . Secondary Targets . | . . . Shots Hit Robots 86 | . 72 14 Core Hits 35 | . 29 6 Critical Kills . | . . . Critical Parts Destroyed . | . . . Critical Strikes 7 | . 4 3 Burn 6 | . 3 3 Corrupt 1 | . 1 . Melee Attacks . | . . . Impact . | . . . Slashing . | . . . Piercing . | . . . Sneak Attacks . | . . . Combat Hostiles . | . . . Follow-up Attacks . | . . . Damage Inflicted 1037 | . 864 173 Guns 1023 | . 854 169 Cannons . | . . . Explosions . | . . . Melee . | . . . Ramming 14 | . 10 4 Kinetic 193 | . 193 . Thermal 772 | . 603 169 Explosive . | . . . Electromagnetic 58 | . 58 . Impact . | . . . Slashing . | . . . Piercing . | . . . Highest Corruption 2 | . 1 2 Average Corruption 1 | . 1 1 Corruption Purged . | . . . Corruption Blocked . | . . . Effects 4 | . 2 2 Matter Fused 2 | . 2 . Data Loss (major) 1 | . . 1 Alerts 1 | . . 1 Overload Shots . | . . . Overflow Damage . | . . . Projectiles . | . . . Explosions . | . . . Melee . | . . . Knockbacks . | . . . Impact . | . . . Kinetic . | . . . Secondary . | . . . Self-Inflicted Damage . | . . . Shots . | . . . Rammed 1 | . 1 . Targets Rammed 7 | . 5 2 Kicked 6 | . 4 2 Crushed . | . . . Highest Temperature 68 | . 68 . Average Temperature 28 | . 28 . Received Heat Transfer 516 | . 408 108 Siege Activations . | . . . Robots Corrupted . | . . . Combat Hostiles . | . . . Parts Fried . | . . . Impact Corruptions . | . . . Robots Melted 2 | . 1 1 Combat Hostiles 2 | . 1 1 Parts Melted 8 | . 3 5 Heat Transferred 2467 | . 1739 728 Parts Sabotaged . | . . . Parts Stolen . | . . . Parts Stripped . | . . . Power Chain Reactions . | . . . Missiles Intercepted . | . . . Alert | -11 -10 -10 ------- Run | Scr Mat Min Peak Influence 243 | . 243 61 Initial 21 | . . 21 Average 60 | . 69 35 Maximum Alert Level 1 | . 1 . Low Security (%) 90 | 100 88 100 Level 1 9 | . 11 . Level 2 . | . . . Level 3 . | . . . Level 4 . | . . . Level 5 . | . . . High Security . | . . . Max Security . | . . . Squads Dispatched 4 | . 4 . Investigation 1 | . 1 . Extermination . | . . . Reinforcement 3 | . 3 . Assault . | . . . Garrison . | . . . Intercept . | . . . Searches Triggered . | . . . Construction Impeded . | . . . Haulers Reinforced . | . . . Active Scanning Responses . | . . . Cargo Convoy Interrupts . | . . . Stealth | -11 -10 -10 --------- Run | Scr Mat Min Distress Signals 1 | . 1 . Communications Jammed . | . . . Distress Signals . | . . . Times Spotted 24 | . 18 6 Peak Tracking Total 8 | . 8 3 Tactical Retreats . | . . . Traps | -11 -10 -10 ------- Run | Scr Mat Min Traps Triggered 1 | . 1 . Indirectly . | . . . Trap Hack Attempts . | . . . Triggered . | . . . Disarmed . | . . . Reprogrammed . | . . . Reused . | . . . Traps Extracted . | . . . Installed . | . . . Triggered . | . . . Machines | -11 -10 -10 ---------- Run | Scr Mat Min Machines Disabled 1 | . 1 . Max in Single Turn 1 | . 1 . Machines Sabotaged . | . . . Garrisons Compromised . | . . . Overloaded Fab Kills . | . . . Hacking | -11 -10 -10 --------- Run | Scr Mat Min Machines Accessed 1 | . 1 . Terminals . | . . . Fabricators . | . . . Repair Stations 1 | . 1 . Recycling Units . | . . . Scanalyzers . | . . . Garrison Access . | . . . Total Hacks 3 | . 3 . Successful 3 | . 3 . Failed . | . . . Catastrophic . | . . . Database Lockouts . | . . . Manual 1 | . 1 . Terminals . | . . . Fabricators . | . . . Repair Stations 3 | . 3 . Recycling Units . | . . . Scanalyzers . | . . . Garrison Access . | . . . Terminal Hacks . | . . . Fabricator Hacks . | . . . Repair Station Hacks 3 | . 3 . Scan Component 1 | . 1 . Repair 1 | . 1 . Refit 1 | . 1 . Recycling Unit Hacks . | . . . Scanalyzer . | . . . Garrison Access Hacks . | . . . Unauthorized Hacks . | . . . Terminals . | . . . Fabricators . | . . . Repair Stations . | . . . Recycling Units . | . . . Scanalyzers . | . . . Garrison Access . | . . . Data Cores Recovered . | . . . Used . | . . . Hacking Detections 2 | . 2 . Full Trace Events 1 | . 1 . Feedback Events . | . . . Feedback Blocked . | . . . Robot Schematics Acquired . | . . . Robots Built . | . . . Authchips . | . . . Time . | . . . Total Robot Build Rating . | . . . Part Schematics Acquired . | . . . Parts Built . | . . . Authchips . | . . . Time . | . . . Total Part Build Rating . | . . . Parts Repaired 1 | . 1 . Time 26 | . 26 . Parts Recycled . | . . . Recycled Matter . | . . . Retrieved Matter . | . . . Retrieved Components . | . . . Parts Scanalyzed . | . . . Part Schematics Acquired . | . . . Parts Damaged . | . . . Bothacking | -11 -10 -10 ------------ Run | Scr Mat Min Used RIF Installer . | . . . Robots Hacked . | . . . Non-combat . | . . . Combat . | . . . Robot Hacks Applied . | . . . Relay Couplers Released . | . . . Fabnet Peak Effective % . | . . . Robots Rewired . | . . . Allies Hacked . | . . . Hacks Repelled . | . . . Allies | -11 -10 -10 -------- Run | Scr Mat Min Total Allies . | . . . Largest Group . | . . . Highest-Rated Group . | . . . Highest-Rated Ally . | . . . Total Orders . | . . . Ally Attacks . | . . . Total Damage . | . . . Kills . | . . . Allies Corrupted . | . . . Allies Melted . | . . . Intel | -11 -10 -10 ------- Run | Scr Mat Min Robot Analysis Total . | . . . Derelict Logs Recovered . | . . . Drone Launches . | . . . Drone Recoveries . | . . . Exploration | -11 -10 -10 ------------- Run | Scr Mat Min Turns Passed 1288 | 79 1032 177 Spaces Moved 774 | 57 631 86 Core 26 | 26 . . Treads 176 | 31 145 . Legs 572 | . 486 86 Wheels . | . . . Hover . | . . . Flight . | . . . Fastest Speed 50 | 50 120 120 Average Speed 128 | 111 129 130 Slowest Speed 190 | 160 160 190 Overloaded Moves . | . . . Propulsion Burnouts . | . . . Robots Hopped . | . . . Cave-ins Triggered . | . . . Exploration Rate (%) 31 | 5 68 22 Regions Visited 2 Branch Regions 1 Pre-discovered Areas . | . . . Known Exits Taken . | . . . Unknown Exits Taken 2 | 1 1 . Scrap Searched . | . . . Spaces Dug . | . . . Terrain Destroyed . | . . . Melee . | . . . Projectile . | . . . AOE . | . . . Terrain Rammed . | . . . Walls Destroyed . | . . . Machines Disabled . | . . . Actions | -11 -10 -10 --------- Run | Scr Mat Min Total 942 | 71 740 131 Wait 38 | 2 15 21 Move 772 | 56 630 86 Hop . | . . . Pick Up 19 | 7 12 . Fast Attach 3 | 3 . . Attach 8 | 3 2 3 Detach 1 | . . 1 Swap 12 | . 12 . Drop 9 | . 9 . Fire 73 | . 55 18 Melee . | . . . Ram . | . . . Kick 6 | . 4 2 Crush 1 | . 1 . Escape Stasis . | . . . Rewire . | . . . Trap . | . . . Miscellaneous . | . . . Route ------- -11/Scrapyard -10/Materials (discovered 2 exits: [*Mat] / [*Min]) -10/Mines History --------- Turn | Location | Event 9 | -11/Scrapyard | Discovered new exit (range 15) 80 | -11/Scrapyard | Entered Materials 307 | -10/Materials | Build established: Mutant 602 | -10/Materials | Discovered new exit (range 8) 819 | -10/Materials | Discovered new exit (range 7) 995 | -10/Materials | Repaired Ion Engine? 1086 | -10/Materials | Core integrity fell below 50% 1112 | -10/Materials | Entered Mines 1162 | -10/Mines | Met a Derelict bent on vengeance 1211 | -10/Mines | Excavation squad dispatched 1211 | -10/Mines | A large section of the Mines collapsed 1252 | -10/Mines | Core integrity fell below 20% 1289 | -10/Mines | Destroyed by G-34 Mercenary with Small Laser Last Messages --------------- 01232_ T-07 Excavator destroyed. 01235_ as-31792 sneak attacks. 01238_ Kicked U-05 Engineer. 01241_ Aluminum Leg destroyed. 01241_ System corrupted by crushing effect (+1). 01244_ Knocked back. 01245_ as-31792 suffers critical hit (Burn). 01259_ as-31792 destroyed. 01262_ Acquired 12 matter. 01268_ Backup Power I destroyed. 01276_ System corrupted: IFF burst signal emitted. 01276_ K-01 Serf collects debris. 01276_ T-07 Excavator destroyed. 01279_ A derelict is hurriedly installing traps. 01279_ K-01 Serf collects debris. 01281_ 59-E2J(g): "Hehe, this'll put a wrench in their mining defense operations..." 01281_ 59-E2J(g) slips into the shadows. 01282_ K-01 Serf collects debris. 01288_ R-06 Scavenger collects Wheel. Map ----- +----------------------------------------------------+ | ????????????????????????????????????????? | | ????????????????????????????????????????? | | ????????????????????????????????????????? | | ????????????????????????????????????????? | | ????????????????????????????????????????? | | ????????????????????????????????????????? | | ????????????????????????????????????????? | | ????????????????????????????????????????? | | ????????????????????????????????????????? | | ????????????????????????????????????????? | | ????????????????????????????????????????? | | ????????????????????????????????????????? | | ????????????????????????????????????????? | | ????????????????????????????????????????? | | ????????????????????????????????????????? | | ????????????????????????????????????????? | | ???????????????????????????????#????????? | | ?????????????????????????????? #????????? | | ????????????????????????????? k#????????? | | ????????????????????????????? #????????? | | ????????????????????????????t #??#? #??? | | ???????????????????????????# #?? ^ ???? | | ???????????????????????#### ### #?????? | | ??????????????????????## grk ^ # #???? | | ????????## ????????#### g % #?????? | | ??????### ????????# @| #?????????? | | ??????? ???????# g #?????????? | | ????????# #??????## t ##?????????? | | ????????# #??????# uu ###??????????? | | ????????? #?????## ##????????????? | | ??????????# #?????# ####?????????????? | | ???????????# ###??# #????????????????? | | ????????????# ##?# #????????????????? | | ###??????##### ### #????????????????? | | # ###??## ### ## #????????????????? | | #### ### ## #????????????????? | | ###" ### #????????????????? | | ## #?# #% #????????????????? | | #### ### ######????????????????? | | # ##??## ## ##???????????????????? | | ## ##????## #???????????????????? | | ?# ##??????# #???????????????????? | | ?### #???????## #???????????????????? | | ???# ####?????#### #???????????????????? | | ???# #????????# #???????????????????? | | ???#### #????????# #???????????????????? | | ####### #????????? #???????????????????? | | #????????? ???????????????????? | | ####### #????????? ??????????????????? | | ??????# #????????? ??????????????????? | +----------------------------------------------------+ Best States ------------- Heat Dissipation 39 Energy Generation 14 Energy Capacity 250 Matter Stores 300 Matter Capacity 300 Sight Range 16 Terrain Scan Density 10 Evasion (%) 55 Recoil Reduction 2 Item Schematics ----------------- None Robot Schematics ------------------ None Fabricated ------------ Nothing Alien Tech Used ----------------- None Achievements -------------- It's Just You Challenges ------------ None Game ------ Seed GaussElectronWings Manual? 0 Play Time 00:15:26 Cumulative 9.2 hours Start 2022.08.06 @ 21:24:04 End 2022.08.06 @ 21:46:43 Sessions 1 Manual Loads 0 Difficulty Rogue Special Mode None Game No. 27 Rogue 27 Adventurer 0 Explorer 0 Win Type - Total 0 Types 0/0/0/0/0/0/0/0/0 Lore% 3 Gallery% 18 Achievement% 16 Wizard Run 0 Options --------- ASCII 0 Keyboard 0 Movement Arrows Keybinds 0 Fullscreen 1 Font 24/Smallcaps Map View 76x50 Tactical HUD 1 Map Filters NONE Filters NONE Steam 1 RUN: a94eb99a-906d-4749-9108-c5384e0f5ca5